bitfinex/quotes_ETHUSD_20241019
["timestamp","ask_amount","ask_price","bid_price","bid_amount"]
[1729362700360,4.167309,2644.4,2644.3,1.8852]
[1729362700677,4.999609,2644.4,2644.3,1.8852]
[1729362714316,4.23571,2644.4,2644.3,1.8852]
[1729362720520,3.40341,2644.4,2644.3,1.8852]
[1729362744888,3.99531538,2644.4,2644.3,1.8852]
[1729362749070,7.79551538,2644.4,2644.3,1.8852]
[1729362764625,6.99531538,2644.4,2644.3,1.8852]
[1729362766008,8.11519492,2644.4,2644.3,1.8852]
[1729362766322,8.89839492,2644.4,2644.3,1.8852]
[1729362781129,8.11519492,2644.4,2644.3,1.8852]
[1729362781354,6.99531538,2644.4,2644.3,1.8852]
[1729362792976,3.99531538,2644.4,2644.3,1.8852]
[1729362793183,0.59190538,2644.4,2644.3,2.5929]
[1729362793392,6.80664,2644.5,2644.3,3.38403542]
[1729362793536,3.40328,2644.5,2644.4,1.00707386]
[1729362795061,3.40328,2644.5,2644.4,0.55]
[1729362795466,3.40341,2644.4,2644.3,1.8852]
[1729362804689,3.40341,2644.4,2644.3,1.8852]
[1729362828544,3.40341,2644.4,2644.3,2.67633542]
[1729362837727,3.40341,2644.4,2644.3,1.8852]
[1729362838057,3.40341,2644.4,2644.3,2.67633542]
[1729362840925,3.40341,2644.4,2644.3,3.22633542]
[1729362850231,3.40341,2644.4,2644.3,2.67633542]
[1729362853297,3.40341,2644.4,2644.3,1.8852]
[1729362853801,3.40341,2644.4,2644.3,2.67633542]
[1729362853967,3.99529916,2644.4,2644.3,2.67633542]
[1729362855381,3.99529916,2644.4,2644.3,1.8852]
[1729362855579,5.56334708,2644.4,2644.3,1.8852]
[1729362868622,8.56334708,2644.4,2644.3,1.8852]
[1729362869381,8.95764483,2644.4,2644.3,1.8852]
[1729362923058,4.38959691,2644.4,2644.3,2.0429]
[1729362923263,3.99529916,2644.4,2644.3,2.0429]
[1729362939452,0.59188916,2644.4,2644.3,2.0429]
[1729362940488,3.40341,2644.4,2644.3,2.0429]
[1729362959884,3.40316,2644.6,2644.5,0.1577]
[1729362960081,3.40316,2644.6,2644.5,0.41699]
[1729362961721,3.40316,2644.6,2644.5,0.1577]
[1729362967056,3.40316,2644.6,2644.3,1.8852]
[1729362967222,3.40341,2644.4,2644.3,1.8852]
[1729362969347,4.17931,2644.4,2644.3,1.8852]
[1729362970759,7.17931,2644.4,2644.3,1.8852]
[1729362970959,8.23757,2644.4,2644.3,1.8852]
[1729362971113,8.63194679,2644.4,2644.3,1.8852]
[1729362981323,6.40341,2644.4,2644.3,1.8852]
[1729362993144,3.40341,2644.4,2644.3,1.8852]
[1729363000958,3.99533055,2644.4,2644.3,1.8852]
[1729363010201,8.46765755,2644.4,2644.3,1.8852]
[1729363045403,11.46765755,2644.4,2644.3,1.8852]
[1729363045727,13.79266231,2644.4,2644.3,1.8852]
[1729363061613,13.02996231,2644.4,2644.3,1.8852]
[1729363080336,13.81846231,2644.4,2644.3,1.8852]
[1729363080541,14.21216133,2644.4,2644.3,1.8852]
[1729363090550,13.42366133,2644.4,2644.3,1.8852]
[1729363099873,11.86135657,2644.4,2644.3,1.8852]
[1729363103459,11.46765755,2644.4,2644.3,1.8852]
[1729363120041,11.86185219,2644.4,2644.3,1.8852]
[1729363125894,11.46765755,2644.4,2644.3,1.8852]
[1729363148874,8.46765755,2644.4,2644.3,2.0429]
[1729363149048,8.46765755,2644.4,2644.3,2.32645981]
[1729363152483,8.46765755,2644.4,2644.3,2.0429]
[1729363165805,5.06424755,2644.4,2644.3,2.0429]
[1729363166510,5.06424755,2644.4,2644.3,2.5929]
[1729363167007,4.472327,2644.4,2644.3,2.5929]
[1729363178931,4.472327,2644.4,2644.3,2.75478007]
[1729363179229,4.472327,2644.4,2644.3,3.10952789]
[1729363179380,4.472327,2644.4,2644.3,2.94764782]
[1729363180334,4.472327,2644.4,2644.3,3.10952238]
[1729363180694,4.472327,2644.4,2644.3,2.94764782]
[1729363181799,4.472327,2644.4,2644.3,3.10953731]
[1729363181995,4.472327,2644.4,2644.3,2.94764782]
[1729363182400,4.472327,2644.4,2644.3,3.10953691]
[1729363182604,4.472327,2644.4,2644.3,2.94764782]
[1729363186609,4.472327,2644.4,2644.3,3.10957427]
[1729363192619,4.472327,2644.4,2644.3,3.9022724]
[1729363193808,4.472327,2644.4,2644.3,3.74034595]
[1729363194016,4.472327,2644.4,2644.3,3.90235583]
[1729363194231,4.472327,2644.4,2644.3,3.74034595]
[1729363194398,4.472327,2644.4,2644.3,3.90235885]
[1729363197697,4.472327,2644.4,2644.3,3.90240756]
[1729363200240,7.875737,2644.4,2644.3,2.83995974]
[1729363200443,8.650237,2644.4,2644.3,2.83995974]
[1729363200747,8.650237,2644.4,2644.3,1.8852]
[1729363213951,9.24213891,2644.4,2644.3,1.8852]
[1729363215515,9.75322886,2644.4,2644.3,1.8852]
[1729363218420,9.24213891,2644.4,2644.3,1.8852]
[1729363261441,12.24213891,2644.4,2644.3,1.8852]
[1729363269857,12.63547571,2644.4,2644.3,1.8852]
[1729363304574,3.40406,2643.9,2643.8,0.1577]
[1729363305263,3.99609245,2643.9,2643.8,0.1577]
[1729363306299,3.7583,2643.4,2643.3,6.47e-06]
[1729363306502,3.40586,2642.5,2642.4,0.1577]
[1729363306665,3.80165615,2642.5,2642.4,0.57955881]
[1729363306870,3.40586,2642.5,2642.4,0.57955881]
[1729363307314,3.40586,2642.5,2642.4,0.31994455]
[1729363308312,3.40586,2642.5,2642.4,0.1577]
[1729363336426,3.40586,2642.5,2642.4,0.31855457]
[1729363336827,3.40586,2642.5,2642.4,0.1577]
[1729363337081,3.40586,2642.5,2642.4,0.31855642]
[1729363344790,3.40586,2642.5,2642.4,0.1577]
[1729363345085,3.40586,2642.5,2642.4,0.31711908]
[1729363348553,3.40586,2642.5,2642.4,0.31714633]
[1729363349794,3.40586,2642.5,2642.4,0.1577]
[1729363350001,3.40586,2642.5,2642.4,0.31716689]
[1729363350293,3.40586,2642.5,2642.4,0.1577]
[1729363350851,3.40612,2642.3,2642.2,0.1577]
[1729363351153,3.40612,2642.3,2642.2,0.57231466]
[1729363351903,3.40612,2642.3,2642.2,0.57230558]
[1729363352054,3.40612,2642.3,2642.2,1.1102956]
[1729363352403,3.40612,2642.3,2642.2,1.50267487]
[1729363356154,3.40612,2642.3,2642.2,1.50267169]
[1729363356870,3.40612,2642.3,2642.2,1.75780208]
[1729363357496,3.40612,2642.3,2642.2,1.50267169]
[1729363358195,3.40612,2642.3,2642.2,1.75779042]
[1729363358570,3.40612,2642.3,2642.2,0.57226673]
[1729363360600,3.40612,2642.3,2642.2,2.15331098]
[1729363363716,3.40612,2642.3,2642.2,1.50782589]
[1729363363900,3.40612,2642.3,2642.2,1.76296598]
[1729363364087,3.40612,2642.3,2642.2,1.76291644]
[1729363365367,3.99844948,2642.3,2642.2,1.76291644]
[1729363366598,3.99844948,2642.3,2642.2,0.57228809]
[1729363367213,3.99844948,2642.3,2642.2,1.76290769]
[1729363367372,3.99844948,2642.3,2642.2,0.57228809]
[1729363367573,0.59232948,2642.3,2642.2,1.54355034]
[1729363367774,0.59232948,2642.3,2642.2,3.52732116]
[1729363368080,3.40544,2642.9,2642.4,0.55]
[1729363368081,3.40554,2642.8,2642.4,0.55]
[1729363368291,3.99777018,2642.8,2642.7,0.79340169]
[1729363368492,3.40554,2642.8,2642.7,0.9528047]
[1729363369380,3.40554,2642.8,2642.7,0.79340169]
[1729363370479,6.8103,2643.1,2642.7,1.33199988]
[1729363370680,3.40509,2643.1,2642.7,1.17278949]
[1729363373183,3.40509,2643.1,2642.8,0.79340169]
[1729363373408,3.40509,2643.1,2642.7,1.17278949]
[1729363374224,3.40509,2643.1,2642.8,0.79340169]
[1729363374425,3.40509,2643.1,2642.8,0.1577]
[1729363374732,3.40509,2643.1,2642.8,1.18739089]
[1729363375026,3.40509,2643.1,2642.8,0.3939892]
[1729363377734,6.81026,2643.1,2642.8,0.3939892]
[1729363378334,6.81026,2643.1,2642.8,0.1577]
[1729363379135,3.40509,2643.1,2642.8,0.1577]
[1729363386561,0.8045,2642.3,2642.2,2.32e-06]
[1729363386697,0.55,2642.5,2640.7,4.40705664]
[1729363386698,3.40755,2641.2,2640.7,4.40705664]
[1729363386898,3.40755,2641.2,2640.9,0.18500276]
[1729363386899,3.40775,2641.1,2640.9,0.18500276]
[1729363387098,3.40767,2641.1,2641.0,0.15919659]
[1729363387602,0.3837,2641.2,2641.0,0.15919659]
[1729363387798,3.79125,2641.2,2641.1,0.15919659]
[1729363387993,3.79125,2641.2,2640.7,0.55]
[1729363388198,3.79125,2641.2,2640.8,0.15919659]
[1729363388434,0.3837,2641.2,2640.9,0.15398056]
[1729363388643,0.3837,2641.2,2641.0,0.15398056]
[1729363388844,0.3837,2641.2,2640.8,0.15398177]
[1729363389148,0.3837,2641.2,2640.9,0.15398177]
[1729363389313,0.3837,2641.2,2640.8,0.15398177]
[1729363389657,3.79126,2641.2,2640.8,0.15398177]
[1729363390145,0.3837,2641.2,2640.8,0.15398177]
[1729363390332,0.3837,2641.2,2640.7,0.96175566]
[1729363390535,0.3837,2641.2,2640.7,1.11573743]
[1729363390834,0.3837,2641.2,2640.7,0.96175566]
[1729363391038,0.3837,2641.2,2640.7,1.11573743]
[1729363391352,0.3837,2641.2,2640.7,0.96175566]
[1729363393215,4.212,2641.3,2640.7,0.96175566]
[1729363395455,0.8045,2641.3,2640.8,3.40805]
[1729363396156,0.8045,2641.3,2640.7,4.36982566]
[1729363397030,0.8045,2641.3,2640.8,3.40802]
[1729363399270,0.8045,2641.3,2640.9,3.40786]
[1729363399790,0.8045,2641.7,2641.0,0.07572025]
[1729363399940,0.8045,2641.7,2641.3,3.40732]
[1729363400149,0.8045,2641.7,2641.4,0.05094961]
[1729363404542,0.8045,2641.7,2641.4,0.07570813]
[1729363406505,0.8045,2641.7,2641.3,3.40732]
[1729363416269,0.8045,2641.7,2641.4,0.1539572]
[1729363416466,0.8045,2641.7,2641.5,0.1539572]
[1729363416665,0.8045,2641.7,2641.3,3.40732]
[1729363416848,0.8045,2641.7,2641.4,0.15395365]
[1729363417029,0.8045,2641.7,2641.5,0.15395365]
[1729363417365,0.8045,2641.7,2641.3,3.40732]
[1729363417572,0.8045,2641.7,2641.4,0.15395436]
[1729363417741,0.8045,2641.7,2641.5,0.15395436]
[1729363417941,0.8045,2641.7,2641.3,3.40732]
[1729363418137,0.8045,2641.7,2641.4,0.15395265]
[1729363418483,0.8045,2641.7,2641.5,0.15395265]
[1729363418657,0.8045,2641.7,2641.3,3.40732]
[1729363418969,4.21142,2641.7,2641.4,0.15395434]
[1729363419130,4.21142,2641.7,2641.5,0.15395434]
[1729363419331,4.21142,2641.7,2641.2,3.40752]
[1729363419526,4.21142,2641.7,2641.3,0.40033005]
[1729363419732,4.21142,2641.7,2641.4,0.15396466]
[1729363419994,4.21142,2641.7,2641.5,0.15396466]
[1729363420198,4.21142,2641.7,2641.2,3.40752]
[1729363420406,4.21142,2641.7,2641.3,0.40033571]
[1729363420699,4.21142,2641.7,2641.4,0.15396684]
[1729363420857,4.21142,2641.7,2641.5,0.15396684]
[1729363421055,4.21142,2641.7,2641.2,3.40752]
[1729363421352,4.21142,2641.7,2641.3,3.80767296]
[1729363421353,0.8045,2641.7,2641.3,3.80767296]
[1729363421602,0.8045,2641.7,2641.4,3.56124963]
[1729363421801,0.8045,2641.7,2641.5,0.15396963]
[1729363422001,0.8045,2641.7,2641.6,0.15396963]
[1729363422791,0.8045,2641.7,2641.4,3.40728]
[1729363423002,6.8134,2641.9,2641.5,0.15396253]
[1729363423003,4.18475,2641.9,2641.5,0.15396253]
[1729363423165,4.18475,2641.9,2641.6,0.15396253]
[1729363423372,7.59149,2641.9,2641.4,3.40728]
[1729363423560,7.59149,2641.9,2641.5,0.15396457]
[1729363423757,7.59149,2641.9,2641.6,0.15396457]
[1729363424002,7.59149,2641.9,2641.4,3.40728]
[1729363424300,7.59149,2641.9,2641.5,0.15396618]
[1729363424496,7.59149,2641.9,2641.6,0.15396618]
[1729363424671,7.59149,2641.9,2641.4,3.40728]
[1729363425001,7.59149,2641.9,2641.3,0.07570891]
[1729363425002,3.40678,2641.8,2641.5,0.15396971]
[1729363425215,3.40678,2641.8,2641.6,0.15396971]
[1729363425363,3.40678,2641.8,2641.3,0.07570891]
[1729363425569,3.40678,2641.8,2641.4,0.40036843]
[1729363425769,3.40678,2641.8,2641.5,0.15397942]
[1729363425972,4.18475,2641.9,2641.6,0.15397942]
[1729363426273,4.18475,2641.9,2641.4,3.4072]
[1729363426478,4.18475,2641.9,2641.4,3.74792]
[1729363426681,4.18475,2641.9,2641.5,0.1539867]
[1729363426879,4.18475,2641.9,2641.6,0.1539867]
[1729363427109,4.18475,2641.9,2641.4,3.74792]
[1729363427284,4.18475,2641.9,2641.5,0.1539885]
[1729363427496,4.18475,2641.9,2641.6,0.1539885]
[1729363427699,4.18475,2641.9,2641.4,3.74792]
[1729363428019,7.59151,2641.9,2641.5,0.15400386]
[1729363428197,4.18475,2641.9,2641.6,0.15400386]
[1729363428400,4.18475,2641.9,2641.7,0.15400386]
[1729363428585,4.18475,2641.9,2641.4,3.4072]
[1729363428778,4.18475,2641.9,2641.5,0.40048902]
[1729363428983,4.18475,2641.9,2641.4,3.4072]
[1729363428984,4.18475,2641.9,2641.6,0.1540258]
[1729363429221,4.18475,2641.9,2641.7,0.1540258]
[1729363429222,4.77719909,2641.9,2641.7,0.1540258]
[1729363429523,4.77719909,2641.9,2641.5,0.24649946]
[1729363429731,4.77719909,2641.9,2641.6,0.15405024]
[1729363429903,4.77719909,2641.9,2641.7,0.15405024]
[1729363430111,4.77719909,2641.9,2641.5,0.24650164]
[1729363430425,4.77719909,2641.9,2641.6,0.15404747]
[1729363430600,4.77719909,2641.9,2641.7,0.15404747]
[1729363430799,4.77719909,2641.9,2641.5,0.24649435]
[1729363430994,4.77719909,2641.9,2641.6,0.1540408]
[1729363431208,4.77719909,2641.9,2641.7,0.1540408]
[1729363431440,4.77719909,2641.9,2641.5,0.24649066]
[1729363431601,4.77719909,2641.9,2641.6,0.15404357]
[1729363431804,4.77719909,2641.9,2641.7,0.15404357]
[1729363432127,4.77719909,2641.9,2641.6,0.79007364]
[1729363432325,1.37054909,2641.9,2641.7,0.15404185]
[1729363432633,1.37054909,2641.9,2641.6,0.79007364]
[1729363432809,1.37054909,2641.9,2641.7,0.15404444]
[1729363433011,1.37054909,2641.9,2641.6,0.79007364]
[1729363433212,1.37054909,2641.9,2641.7,0.15403475]
[1729363433412,1.37054909,2641.9,2641.6,0.79007364]
[1729363433725,1.37054909,2641.9,2641.7,0.15403387]
[1729363433929,1.37054909,2641.9,2641.6,0.79007364]
[1729363434099,1.37054909,2641.9,2641.7,0.15403402]
[1729363434299,1.37054909,2641.9,2641.6,0.79007364]
[1729363434500,1.37054909,2641.9,2641.7,0.1540344]
[1729363434703,1.37054909,2641.9,2641.6,0.79007364]
[1729363435891,4.77720909,2641.9,2641.6,0.79007364]
[1729363436183,4.77720909,2641.9,2641.7,0.15403524]
[1729363436379,4.77720909,2641.9,2641.6,0.79007364]
[1729363436541,4.77720909,2641.9,2641.7,0.15403089]
[1729363436879,4.77720909,2641.9,2641.6,0.79007364]
[1729363437081,4.77720909,2641.9,2641.7,0.1540325]
[1729363437284,4.77720909,2641.9,2641.6,0.79007364]
[1729363437482,4.77720909,2641.9,2641.7,0.15402688]
[1729363437781,4.77720909,2641.9,2641.6,0.79007364]
[1729363437984,4.77720909,2641.9,2641.7,0.15402723]
[1729363438138,4.77720909,2641.9,2641.6,0.79007364]
[1729363438343,4.77720909,2641.9,2641.7,0.15402483]
[1729363438639,4.77720909,2641.9,2641.6,0.79007364]
[1729363438851,4.77720909,2641.9,2641.7,0.1540249]
[1729363439091,4.77720909,2641.9,2641.6,0.79007364]
[1729363439900,4.77720909,2641.9,2641.7,0.15402845]
[1729363440066,4.77720909,2641.9,2641.6,0.79007364]
[1729363440264,4.77720909,2641.9,2641.5,0.79007364]
[1729363440468,4.77720909,2641.9,2641.6,0.94411342]
[1729363440693,4.77720909,2641.9,2641.7,0.15403978]
[1729363440895,4.77720909,2641.9,2641.6,0.79007364]
[1729363441051,4.77720909,2641.9,2641.7,0.15403821]
[1729363441255,4.77720909,2641.9,2641.6,0.79007364]
[1729363441594,4.77720909,2641.9,2641.7,0.15403683]
[1729363441795,4.77720909,2641.9,2641.6,0.79007364]
[1729363441995,4.77720909,2641.9,2641.7,0.15404011]
[1729363442198,4.77720909,2641.9,2641.6,0.79007364]
[1729363442524,4.77720909,2641.9,2641.7,0.15404246]
[1729363442649,4.77720909,2641.9,2641.6,0.79007364]
[1729363442851,4.77720909,2641.9,2641.7,0.15404694]
[1729363443089,4.77720909,2641.9,2641.6,0.79007364]
[1729363443292,4.77720909,2641.9,2641.7,0.15404916]
[1729363443493,4.77720909,2641.9,2641.6,0.79007364]
[1729363443857,4.77720909,2641.9,2641.7,0.15405105]
[1729363444194,4.77720909,2641.9,2641.6,0.79007364]
[1729363444358,4.77720909,2641.9,2641.7,0.15405318]
[1729363444554,4.77720909,2641.9,2641.6,0.79007364]
[1729363444758,4.77720909,2641.9,2641.7,0.15405147]
[1729363445061,4.77720909,2641.9,2641.6,0.79007364]
[1729363445261,4.77720909,2641.9,2641.7,0.1540523]
[1729363445485,4.77720909,2641.9,2641.6,0.79007364]
[1729363445689,4.77720909,2641.9,2641.7,0.15405567]
[1729363445875,4.77720909,2641.9,2641.6,0.79007364]
[1729363446056,4.77720909,2641.9,2641.7,0.154054]
[1729363446272,4.77720909,2641.9,2641.6,0.79007364]
[1729363446473,4.77720909,2641.9,2641.7,0.15405686]
[1729363446711,4.77720909,2641.9,2641.6,0.79007364]
[1729363446877,4.77720909,2641.9,2641.7,0.15406249]
[1729363447218,4.77720909,2641.9,2641.6,0.79007364]
[1729363447526,4.77720909,2641.9,2641.7,0.15406557]
[1729363447676,4.77720909,2641.9,2641.6,0.79007364]
[1729363447876,4.77720909,2641.9,2641.7,0.15406294]
[1729363448203,4.77720909,2641.9,2641.6,0.79007364]
[1729363448514,4.77720909,2641.9,2641.7,0.15406632]
[1729363448716,4.77720909,2641.9,2641.6,0.79007364]
[1729363448878,4.77720909,2641.9,2641.7,0.15406562]
[1729363449073,4.77720909,2641.9,2641.6,0.79007364]
[1729363449274,4.77720909,2641.9,2641.7,0.15406707]
[1729363449512,4.77720909,2641.9,2641.6,0.79007364]
[1729363449716,4.77720909,2641.9,2641.7,0.15407238]
[1729363450061,4.77720909,2641.9,2641.6,0.79007364]
[1729363450322,4.77720909,2641.9,2641.7,0.15407353]
[1729363450490,4.77720909,2641.9,2641.6,0.79007364]
[1729363450685,1.37054909,2641.9,2641.7,0.15408909]
[1729363450901,1.37054909,2641.9,2641.6,0.79007364]
[1729363451103,1.37054909,2641.9,2641.7,0.15408602]
[1729363451290,1.37054909,2641.9,2641.6,0.79007364]
[1729363451514,1.37054909,2641.9,2641.7,0.15410545]
[1729363451681,1.37054909,2641.9,2641.6,0.79007364]
[1729363451880,1.37054909,2641.9,2641.7,0.15410519]
[1729363452125,1.37054909,2641.9,2641.6,0.79007364]
[1729363452323,1.37054909,2641.9,2641.7,0.1541074]
[1729363452526,1.37054909,2641.9,2641.6,0.79007364]
[1729363452681,4.77719909,2641.9,2641.7,0.15410977]
[1729363452981,4.77719909,2641.9,2641.6,0.79007364]
[1729363453289,4.77719909,2641.9,2641.7,0.15410722]
[1729363453493,4.77719909,2641.9,2641.6,0.79007364]
[1729363453675,4.77719909,2641.9,2641.7,0.15410612]
[1729363453875,4.77719909,2641.9,2641.6,0.79007364]
[1729363454222,4.77719909,2641.9,2641.7,0.15410562]
[1729363454395,4.77719909,2641.9,2641.6,0.79007364]
[1729363454727,4.77719909,2641.9,2641.7,0.15410845]
[1729363455017,4.77719909,2641.9,2641.6,0.79007364]
[1729363455245,4.77719909,2641.9,2641.7,0.15410844]
[1729363455528,4.77719909,2641.9,2641.6,0.79007364]
[1729363455686,4.77719909,2641.9,2641.7,0.15411088]
[1729363455882,4.77719909,2641.9,2641.6,0.79007364]
[1729363456082,4.77719909,2641.9,2641.7,0.15410909]
[1729363456302,4.77719909,2641.9,2641.6,0.79007364]
[1729363456636,4.77719909,2641.9,2641.7,0.15411108]
[1729363456803,4.77719909,2641.9,2641.6,0.79007364]
[1729363456998,4.77719909,2641.9,2641.7,0.15410785]
[1729363457202,4.77719909,2641.9,2641.6,0.79007364]
[1729363457403,4.77719909,2641.9,2641.7,0.15410972]
[1729363457616,4.77719909,2641.9,2641.6,0.79007364]
[1729363457824,4.77719909,2641.9,2641.7,0.15411054]
[1729363458025,4.77719909,2641.9,2641.6,0.79007364]
[1729363458321,4.77719909,2641.9,2641.7,0.15411976]
[1729363458540,4.77719909,2641.9,2641.6,0.79007364]
[1729363458839,4.77719909,2641.9,2641.7,0.15412031]
[1729363459062,4.77719909,2641.9,2641.6,0.78886212]
[1729363459347,4.77719909,2641.9,2641.7,0.15412014]
[1729363459530,4.77719909,2641.9,2641.6,0.78886212]
[1729363459704,4.77719909,2641.9,2641.7,0.1541191]
[1729363459906,4.77719909,2641.9,2641.6,0.78886212]
[1729363460114,4.77719909,2641.9,2641.7,0.15411968]
[1729363460315,4.77719909,2641.9,2641.6,0.78886212]
[1729363460563,4.77719909,2641.9,2641.7,0.15411575]
[1729363460723,4.77719909,2641.9,2641.6,0.78886212]
[1729363460925,4.77719909,2641.9,2641.7,0.15411231]
[1729363461124,4.77719909,2641.9,2641.6,0.78886212]
[1729363461377,4.77719909,2641.9,2641.7,0.1541124]
[1729363461663,4.77719909,2641.9,2641.6,0.78886212]
[1729363461859,4.77719909,2641.9,2641.7,0.15411055]
[1729363462067,4.77719909,2641.9,2641.6,0.78886212]
[1729363462068,4.77719909,2641.9,2641.5,4.59246832]
[1729363462227,4.77719909,2641.9,2641.6,0.15411045]
[1729363462423,1.37054909,2641.9,2641.7,0.15411045]
[1729363462628,1.37054909,2641.9,2641.6,1.18533832]
[1729363462830,1.37054909,2641.9,2641.7,0.15410692]
[1729363463031,1.37054909,2641.9,2641.6,1.18533832]
[1729363463355,1.37054909,2641.9,2641.7,0.15411183]
[1729363463539,1.37054909,2641.9,2641.6,1.18533832]
[1729363463739,1.37054909,2641.9,2641.7,0.15410695]
[1729363463965,1.37054909,2641.9,2641.6,1.18533832]
[1729363464140,1.37054909,2641.9,2641.7,0.15410731]
[1729363464335,1.37054909,2641.9,2641.6,1.18533832]
[1729363464525,1.37054909,2641.9,2641.7,0.15410773]
[1729363464726,1.37054909,2641.9,2641.6,1.18533832]
[1729363464926,1.37054909,2641.9,2641.7,0.1541064]
[1729363465161,1.37054909,2641.9,2641.6,1.18533832]
[1729363465366,1.37054909,2641.9,2641.7,0.15410433]
[1729363465606,1.37054909,2641.9,2641.6,1.18533832]
[1729363465803,1.37054909,2641.9,2641.7,0.15410559]
[1729363466013,1.37054909,2641.9,2641.6,1.18533832]
[1729363466182,1.37054909,2641.9,2641.7,0.15410694]
[1729363466394,1.37054909,2641.9,2641.8,0.1541026]
[1729363466576,1.37054909,2641.9,2641.6,1.18533832]
[1729363466895,0.7781,2641.9,2641.7,0.15410504]
[1729363467091,0.7781,2641.9,2641.6,1.18533832]
[1729363467311,0.7781,2641.9,2641.7,0.15410252]
[1729363467496,0.7781,2641.9,2641.6,1.18533832]
[1729363467704,0.7781,2641.9,2641.7,0.154111]
[1729363467874,0.7781,2641.9,2641.6,1.18533832]
[1729363468075,0.7781,2641.9,2641.7,0.15411721]
[1729363468269,0.7781,2641.9,2641.6,1.18533832]
[1729363468471,0.7781,2641.9,2641.7,0.15411429]
[1729363468819,4.18476,2641.9,2641.6,1.18533832]
[1729363468973,4.18476,2641.9,2641.7,0.948672]
[1729363469175,4.18476,2641.9,2641.7,0.7945635]
[1729363476530,4.18476,2641.9,2641.6,0.7945635]
[1729363476688,4.18476,2641.9,2641.7,0.94870471]
[1729363477010,4.18476,2641.9,2641.7,0.7945635]
[1729363479532,0.7781,2641.9,2641.8,0.15414418]
[1729363480092,0.7781,2641.9,2641.8,0.15413383]
[1729363481062,0.7781,2641.9,2641.8,0.15413266]
[1729363482366,0.7781,2641.9,2641.7,0.7945635]
[1729363482528,0.7781,2641.9,2641.8,0.15413055]
[1729363483125,0.7781,2641.9,2641.7,0.7945635]
[1729363483848,0.7781,2641.9,2641.8,0.15413701]
[1729363484464,3.74893041,2642.5,2641.8,0.15413701]
[1729363484465,4.22944,2642.2,2641.8,0.15413701]
[1729363484636,3.40645,2642.1,2641.7,0.7945635]
[1729363484842,3.4064,2642.1,2641.8,0.94868577]
[1729363485029,3.4064,2642.1,2641.8,0.7945635]
[1729363488373,4.22943,2642.2,2641.7,0.7945635]
[1729363488374,3.40651,2642.0,2641.7,0.7945635]
[1729363488575,3.40651,2642.0,2641.8,0.15410212]
[1729363488875,3.40651,2642.0,2641.7,0.7945635]
[1729363489043,3.40651,2642.0,2641.8,0.15410277]
[1729363489244,3.40651,2642.0,2641.8,0.7945635]
[1729363489740,3.40651,2642.0,2641.7,0.7945635]
[1729363490078,3.40651,2642.0,2641.8,0.15409994]
[1729363490246,3.40651,2642.0,2641.7,0.7945635]
[1729363490447,3.40651,2642.0,2641.8,0.15410259]
[1729363490645,4.22943,2642.2,2641.7,0.7945635]
[1729363490846,3.40644,2642.1,2641.8,0.15410451]
[1729363491149,3.40644,2642.1,2641.7,0.7945635]
[1729363491354,3.40644,2642.1,2641.8,0.15410126]
[1729363491559,3.40644,2642.1,2641.7,0.7945635]
[1729363491871,3.40644,2642.1,2641.8,0.15410105]
[1729363492071,3.40644,2642.1,2641.7,0.7945635]
[1729363492228,3.40644,2642.1,2641.8,0.1541018]
[1729363492424,3.40644,2642.1,2641.7,0.7945635]
[1729363492679,3.40644,2642.1,2641.8,0.1540992]
[1729363492977,3.40644,2642.1,2641.7,0.7945635]
[1729363493273,3.40644,2642.1,2641.8,0.15410044]
[1729363493480,3.40644,2642.1,2641.7,0.7945635]
[1729363493659,3.40644,2642.1,2641.8,0.94865918]
[1729363493862,3.40644,2642.1,2641.7,0.7945635]
[1729363494049,3.40644,2642.1,2641.8,0.94866726]
[1729363494449,3.40644,2642.1,2641.8,0.7945635]
[1729363494773,3.40644,2642.1,2641.7,0.7945635]
[1729363494959,3.40644,2642.1,2641.8,0.94865651]
[1729363495162,3.40644,2642.1,2641.8,0.7945635]
[1729363496199,3.40644,2642.1,2641.7,0.7945635]
[1729363496682,3.40644,2642.1,2641.8,0.15409324]
[1729363496872,3.40644,2642.1,2641.8,0.7945635]
[1729363505008,3.40644,2642.1,2641.7,0.7945635]
[1729363505316,3.40644,2642.1,2641.8,0.15410224]
[1729363505525,3.40644,2642.1,2641.8,0.7945635]
[1729363509303,6.81289,2642.1,2641.8,0.7945635]
[1729363509625,3.40644,2642.1,2641.8,0.7945635]
[1729363517959,3.40644,2642.1,2641.9,0.15411538]
[1729363518273,3.40644,2642.1,2641.8,0.7945635]
[1729363520768,6.8129,2642.1,2641.8,0.7945635]
[1729363520973,4.17004,2642.1,2641.8,0.7945635]
[1729363521343,3.40644,2642.1,2641.8,0.7945635]
[1729363522687,6.81289,2642.1,2641.8,0.7945635]
[1729363522891,3.40644,2642.1,2641.8,0.7945635]
[1729363525449,3.40644,2642.1,2641.9,0.15410662]
[1729363525651,3.40644,2642.1,2641.8,0.7945635]
[1729363528077,6.81289,2642.1,2641.8,0.7945635]
[1729363529695,3.40644,2642.1,2641.8,0.7945635]
[1729363530063,6.8129,2642.1,2641.8,0.7945635]
[1729363530473,3.40644,2642.1,2641.8,0.7945635]
[1729363531103,6.81289,2642.1,2641.8,0.7945635]
[1729363531508,6.8129,2642.1,2641.8,0.7945635]
[1729363531798,3.40644,2642.1,2641.9,0.15410075]
[1729363532002,7.22935,2642.2,2641.8,0.7945635]
[1729363532191,7.22935,2642.2,2641.9,0.15411106]
[1729363532398,7.22935,2642.2,2641.8,0.7945635]
[1729363532866,7.22935,2642.2,2641.9,0.15409894]
[1729363533069,7.22935,2642.2,2641.8,0.7945635]
[1729363533295,7.22935,2642.2,2641.9,0.15409953]
[1729363533479,7.22935,2642.2,2641.8,0.7945635]
[1729363533480,4.22935,2642.2,2641.8,0.7945635]
[1729363533808,4.22935,2642.2,2641.9,0.15409577]
[1729363533962,4.22935,2642.2,2641.8,0.7945635]
[1729363534158,4.22935,2642.2,2641.9,0.15409583]
[1729363534407,4.22935,2642.2,2641.8,0.7945635]
[1729363534574,4.22935,2642.2,2641.9,0.15409406]
[1729363534777,4.22935,2642.2,2641.8,0.7945635]
[1729363534981,4.22935,2642.2,2641.9,0.15409834]
[1729363535178,4.22935,2642.2,2641.9,0.7945635]
[1729363535435,4.22935,2642.2,2641.8,0.7945635]
[1729363535713,4.22935,2642.2,2641.9,0.15409669]
[1729363536010,4.22935,2642.2,2641.8,0.7945635]
[1729363536162,4.22935,2642.2,2641.9,0.15409676]
[1729363536359,4.22935,2642.2,2641.8,0.7945635]